[Event "Early-Titled-Tuesday-Blitz-March-05-2024"]
[Site "Chess.com"]
[Date "2024.03.05"]
[Round "10"]
[White "Matols"]
[Black "Mariia89"]
[Result "1-0"]
[WhiteElo "2380"]
[BlackElo "2255"]
[TimeControl "180+1"]
[EndTime "9:57:39 PST"]
[Termination "Matols won on time"]

1. d4 {[%clk 0:03:00.9]} 1... Nf6 {[%clk 0:02:59.6]} 2. c4 {[%clk 0:03:01.2]}
2... c5 {[%clk 0:03:00]} 3. d5 {[%clk 0:03:00.9]} 3... b5 {[%clk 0:03:00.4]} 4.
cxb5 {[%clk 0:03:00.3]} 4... a6 {[%clk 0:03:00.8]} 5. bxa6 {[%clk 0:03:01.2]}
5... Bxa6 {[%clk 0:03:00.9]} 6. Nc3 {[%clk 0:03:01.8]} 6... d6 {[%clk
0:03:01.1]} 7. Nf3 {[%clk 0:03:02.4]} 7... g6 {[%clk 0:03:01.2]} 8. g3 {[%clk
0:03:03]} 8... Bg7 {[%clk 0:03:01.6]} 9. Bg2 {[%clk 0:03:03.5]} 9... O-O {[%clk
0:03:02.2]} 10. O-O {[%clk 0:03:03.9]} 10... Nbd7 {[%clk 0:03:02.6]} 11. Rb1
{[%clk 0:03:04.3]} 11... Qb6 {[%clk 0:02:57.9]} 12. b3 {[%clk 0:03:01.5]} 12...
Rfb8 {[%clk 0:02:35.1]} 13. Bd2 {[%clk 0:02:59.2]} 13... Ne8 {[%clk 0:02:25.1]}
14. Qc2 {[%clk 0:02:54.2]} 14... Nc7 {[%clk 0:02:22]} 15. a4 {[%clk 0:02:53]}
15... Qb7 {[%clk 0:01:48.2]} 16. Rfd1 {[%clk 0:02:42.1]} 16... Nf6 {[%clk
0:01:39.8]} 17. Be1 {[%clk 0:02:22]} 17... Qb4 {[%clk 0:01:34.3]} 18. Nb5 {[%clk
0:02:14.5]} 18... Qe4 {[%clk 0:01:25.2]} 19. Qxe4 {[%clk 0:02:12.4]} 19... Nxe4
{[%clk 0:01:26.1]} 20. Nxc7 {[%clk 0:02:12.8]} 20... Bxe2 {[%clk 0:01:23.7]} 21.
Nxa8 {[%clk 0:02:08.9]} 21... Bxd1 {[%clk 0:01:23.7]} 22. Rxd1 {[%clk
0:02:07.4]} 22... Rxa8 {[%clk 0:01:24.3]} 23. a5 {[%clk 0:01:58.1]} 23... Rb8
{[%clk 0:01:08.9]} 24. Rb1 {[%clk 0:01:54.7]} 24... e6 {[%clk 0:00:59.1]} 25.
dxe6 {[%clk 0:01:53.7]} 25... fxe6 {[%clk 0:01:00]} 26. a6 {[%clk 0:01:53.6]}
26... d5 {[%clk 0:00:57.7]} 27. Ba5 {[%clk 0:01:34.7]} 27... Ra8 {[%clk
0:00:55.9]} 28. Bf1 {[%clk 0:01:33.9]} 28... c4 {[%clk 0:00:50.5]} 29. bxc4
{[%clk 0:01:24.3]} 29... Rxa6 {[%clk 0:00:49.5]} 30. Be1 {[%clk 0:01:21.7]}
30... Ra2 {[%clk 0:00:33.5]} 31. cxd5 {[%clk 0:01:19.5]} 31... exd5 {[%clk
0:00:34.4]} 32. h4 {[%clk 0:01:14.8]} 32... h6 {[%clk 0:00:17.9]} 33. Rd1 {[%clk
0:01:01.9]} 33... Nf6 {[%clk 0:00:04.2]} 34. Ne5 {[%clk 0:00:51.3]} 34... Kh7
{[%clk 0:00:03.2]} 35. Bd3 {[%clk 0:00:48.4]} 35... Ne4 {[%clk 0:00:02.8]} 36.
Nf3 {[%clk 0:00:35.3]} 36... Nf6 {[%clk 0:00:01.1]} 37. Kg2 {[%clk 0:00:33.2]}
1-0

[Event "Early-Titled-Tuesday-Blitz-March-05-2024"]
[Site "Chess.com"]
[Date "2024.03.05"]
[Round "10"]
[White "sokidze"]
[Black "subham777"]
[Result "1-0"]
[WhiteElo "2782"]
[BlackElo "2570"]
[TimeControl "180+1"]
[EndTime "9:57:41 PST"]
[Termination "sokidze won on time"]

1. d4 {[%clk 0:03:00.9]} 1... d5 {[%clk 0:02:55.5]} 2. c4 {[%clk 0:02:59.7]}
2... e6 {[%clk 0:02:52.7]} 3. Nc3 {[%clk 0:02:59.5]} 3... Nf6 {[%clk 0:02:52.4]}
4. cxd5 {[%clk 0:02:59.8]} 4... exd5 {[%clk 0:02:53.3]} 5. Bg5 {[%clk
0:03:00.4]} 5... c6 {[%clk 0:02:46.2]} 6. Qc2 {[%clk 0:03:00.3]} 6... Bd6 {[%clk
0:02:43.3]} 7. e3 {[%clk 0:03:00]} 7... O-O {[%clk 0:02:43.3]} 8. Bd3 {[%clk
0:03:00.3]} 8... h6 {[%clk 0:02:43.6]} 9. Bh4 {[%clk 0:03:00.4]} 9... a5 {[%clk
0:02:44.3]} 10. Nf3 {[%clk 0:02:57.6]} 10... Na6 {[%clk 0:02:44.4]} 11. a3
{[%clk 0:02:58.1]} 11... Re8 {[%clk 0:02:43.1]} 12. Bg3 {[%clk 0:02:42.7]} 12...
Bxg3 {[%clk 0:02:37.6]} 13. hxg3 {[%clk 0:02:43.6]} 13... Ng4 {[%clk 0:02:26.8]}
14. Ne2 {[%clk 0:02:39.4]} 14... Nc7 {[%clk 0:02:20.9]} 15. Nf4 {[%clk
0:02:36.8]} 15... Ne6 {[%clk 0:02:17.8]} 16. Bf5 {[%clk 0:02:25.5]} 16... Nxf4
{[%clk 0:02:09.5]} 17. gxf4 {[%clk 0:02:26.4]} 17... Qf6 {[%clk 0:01:58.9]} 18.
Bh7+ {[%clk 0:02:06.9]} 18... Kh8 {[%clk 0:01:46.9]} 19. Bd3 {[%clk 0:02:06.2]}
19... Qxf4 {[%clk 0:01:38.7]} 20. O-O-O {[%clk 0:01:56.2]} 20... Qf6 {[%clk
0:01:34.5]} 21. Kb1 {[%clk 0:01:54.2]} 21... Bd7 {[%clk 0:01:22.8]} 22. Rh4
{[%clk 0:01:47.4]} 22... Rac8 {[%clk 0:01:10.7]} 23. Rdh1 {[%clk 0:01:38.8]}
23... b6 {[%clk 0:01:01.9]} 24. R1h3 {[%clk 0:01:22.9]} 24... Nxe3 {[%clk
0:00:46.9]} 25. fxe3 {[%clk 0:01:19.8]} 25... Bxh3 {[%clk 0:00:46.7]} 26. Rf4
{[%clk 0:01:15.4]} 26... Qe7 {[%clk 0:00:20.6]} 27. gxh3 {[%clk 0:01:11]} 27...
Qxe3 {[%clk 0:00:20.6]} 28. Rxf7 {[%clk 0:01:05]} 28... Rf8 {[%clk 0:00:17.8]}
29. Rxf8+ {[%clk 0:00:44.2]} 29... Rxf8 {[%clk 0:00:18.7]} 30. Ne5 {[%clk
0:00:44.6]} 30... Qxd4 {[%clk 0:00:05.5]} 31. Ng6+ {[%clk 0:00:37.2]} 31... Kg8
{[%clk 0:00:05.2]} 32. Nxf8 {[%clk 0:00:33.7]} 32... Kxf8 {[%clk 0:00:05.5]} 33.
Bg6 {[%clk 0:00:24.4]} 33... Qf6 {[%clk 0:00:04.5]} 34. h4 {[%clk 0:00:22.5]}
34... Qxh4 {[%clk 0:00:03.4]} 35. Qxc6 {[%clk 0:00:22.5]} 35... Qe1+ {[%clk
0:00:01.5]} 36. Ka2 {[%clk 0:00:23]} 1-0

[Event "Early-Titled-Tuesday-Blitz-March-05-2024"]
[Site "Chess.com"]
[Date "2024.03.05"]
[Round "10"]
[White "ccccvhhhj"]
[Black "Szachulec75"]
[Result "1-0"]
[WhiteElo "2475"]
[BlackElo "2245"]
[TimeControl "180+1"]
[EndTime "9:57:41 PST"]
[Termination "ccccvhhhj won by resignation"]

1. e4 {[%clk 0:03:00.9]} 1... d6 {[%clk 0:02:56.9]} 2. d4 {[%clk 0:03:00.6]}
2... Nf6 {[%clk 0:02:56]} 3. Nc3 {[%clk 0:03:01.2]} 3... c6 {[%clk 0:02:53.9]}
4. f3 {[%clk 0:03:01.4]} 4... Nbd7 {[%clk 0:02:52.3]} 5. Be3 {[%clk 0:03:01.8]}
5... e5 {[%clk 0:02:52.8]} 6. Qd2 {[%clk 0:03:02.2]} 6... Be7 {[%clk 0:02:52.8]}
7. g4 {[%clk 0:03:00.2]} 7... O-O {[%clk 0:02:52.4]} 8. O-O-O {[%clk 0:02:59.9]}
8... b5 {[%clk 0:02:52.5]} 9. h4 {[%clk 0:02:59.2]} 9... a5 {[%clk 0:02:52.4]}
10. Kb1 {[%clk 0:02:57.7]} 10... a4 {[%clk 0:02:51.9]} 11. h5 {[%clk 0:02:57]}
11... b4 {[%clk 0:02:51.9]} 12. Nce2 {[%clk 0:02:57.3]} 12... b3 {[%clk
0:02:51.6]} 13. cxb3 {[%clk 0:02:58.2]} 13... axb3 {[%clk 0:02:51.6]} 14. a3
{[%clk 0:02:58.3]} 14... d5 {[%clk 0:02:50.6]} 15. g5 {[%clk 0:02:57.6]} 15...
Ne8 {[%clk 0:02:44.8]} 16. g6 {[%clk 0:02:48.3]} 16... Bxa3 {[%clk 0:02:42.8]}
17. gxh7+ {[%clk 0:02:46.7]} 17... Kh8 {[%clk 0:02:41.9]} 18. bxa3 {[%clk
0:02:45.1]} 18... Rxa3 {[%clk 0:02:40.8]} 19. Nc1 {[%clk 0:02:30.2]} 19... c5
{[%clk 0:02:36.8]} 20. Qb2 {[%clk 0:02:13.4]} 20... Ra7 {[%clk 0:02:08]} 21.
dxe5 {[%clk 0:02:02.2]} 21... d4 {[%clk 0:01:50.4]} 22. Bf4 {[%clk 0:01:55.4]}
22... Nb6 {[%clk 0:01:43.9]} 23. Bb5 {[%clk 0:01:22.6]} 23... Bd7 {[%clk
0:01:39.6]} 24. Bxd7 {[%clk 0:01:18.4]} 24... Qxd7 {[%clk 0:01:39.6]} 25. h6
{[%clk 0:00:58.2]} 25... g6 {[%clk 0:01:35]} 26. e6 {[%clk 0:00:50.4]} 26...
Qxe6 {[%clk 0:01:34.5]} 27. Qxb3 {[%clk 0:00:48.1]} 27... c4 {[%clk 0:01:33.5]}
28. Qb5 {[%clk 0:00:41.5]} 28... Na4 {[%clk 0:01:25.7]} 29. Qe5+ {[%clk
0:00:41.1]} 29... Kxh7 {[%clk 0:01:20.1]} 30. Qxe6 {[%clk 0:00:25.4]} 30... fxe6
{[%clk 0:01:11.5]} 31. Rxd4 {[%clk 0:00:17.6]} 31... Rxf4 {[%clk 0:01:10.2]} 32.
Nh3 {[%clk 0:00:18.3]} 32... Rxf3 {[%clk 0:01:10.1]} 33. Ng5+ {[%clk 0:00:18.5]}
33... Kh8 {[%clk 0:01:08.6]} 34. Nxf3 {[%clk 0:00:19.4]} 34... Rb7+ {[%clk
0:00:54]} 35. Ka2 {[%clk 0:00:16.4]} 35... Ra7 {[%clk 0:00:53.9]} 36. Rd8 {[%clk
0:00:13.1]} 36... Nc3+ {[%clk 0:00:44.1]} 37. Kb2 {[%clk 0:00:12.9]} 37... Nxe4
{[%clk 0:00:40.2]} 38. Rxe8+ {[%clk 0:00:12.1]} 38... Kh7 {[%clk 0:00:41.1]} 39.
Rg1 {[%clk 0:00:07.4]} 39... c3+ {[%clk 0:00:41.2]} 40. Kc2 {[%clk 0:00:07.4]}
40... Rf7 {[%clk 0:00:39.2]} 41. Ng5+ {[%clk 0:00:06.9]} 41... Nxg5 {[%clk
0:00:37.5]} 42. Rxg5 {[%clk 0:00:07.8]} 42... Kxh6 {[%clk 0:00:36.9]} 43. Rg1
{[%clk 0:00:08.3]} 43... Kg7 {[%clk 0:00:33.1]} 44. Rxe6 {[%clk 0:00:07.7]} 1-0

[Event "Early-Titled-Tuesday-Blitz-March-05-2024"]
[Site "Chess.com"]
[Date "2024.03.05"]
[Round "10"]
[White "stollenmonster"]
[Black "Oleksandr_Bortnyk"]
[Result "0-1"]
[WhiteElo "2890"]
[BlackElo "2990"]
[TimeControl "180+1"]
[EndTime "9:57:45 PST"]
[Termination "Oleksandr_Bortnyk won by resignation"]

1. e4 {[%clk 0:03:00.9]} 1... Nf6 {[%clk 0:02:59.1]} 2. Nc3 {[%clk 0:03:00.8]}
2... d6 {[%clk 0:02:59.7]} 3. g3 {[%clk 0:03:00.8]} 3... e5 {[%clk 0:02:56.6]}
4. Bg2 {[%clk 0:03:00.9]} 4... Be7 {[%clk 0:02:43.8]} 5. Nge2 {[%clk 0:03:01]}
5... c5 {[%clk 0:02:40.7]} 6. d3 {[%clk 0:03:01]} 6... Nc6 {[%clk 0:02:41.3]} 7.
h3 {[%clk 0:03:01.3]} 7... a6 {[%clk 0:02:37.9]} 8. O-O {[%clk 0:03:01.6]} 8...
b5 {[%clk 0:02:38.5]} 9. Kh2 {[%clk 0:02:59.6]} 9... Be6 {[%clk 0:02:34]} 10. f4
{[%clk 0:02:57.6]} 10... Nd4 {[%clk 0:02:18.8]} 11. g4 {[%clk 0:02:53.5]} 11...
Nxg4+ {[%clk 0:01:59]} 12. hxg4 {[%clk 0:02:51]} 12... Bxg4 {[%clk 0:01:59.9]}
13. Qe1 {[%clk 0:02:17.5]} 13... Nxc2 {[%clk 0:01:30.1]} 14. Qf2 {[%clk
0:02:17.2]} 14... Nxa1 {[%clk 0:01:11]} 15. fxe5 {[%clk 0:02:02.2]} 15... O-O
{[%clk 0:01:09.2]} 16. Ng3 {[%clk 0:01:55]} 16... dxe5 {[%clk 0:00:57.5]} 17.
Nd5 {[%clk 0:01:54.9]} 17... Bd6 {[%clk 0:00:52.2]} 18. Nf5 {[%clk 0:01:35.7]}
18... Bxf5 {[%clk 0:00:48]} 19. Qxf5 {[%clk 0:01:22.6]} 19... Nc2 {[%clk
0:00:38.8]} 20. Qh5 {[%clk 0:01:06.2]} 20... f6 {[%clk 0:00:33.6]} 21. Bh3
{[%clk 0:00:55.7]} 21... Nd4 {[%clk 0:00:33.6]} 22. Rg1 {[%clk 0:00:49.1]} 22...
Ra7 {[%clk 0:00:33.4]} 23. Be3 {[%clk 0:00:35.1]} 23... g6 {[%clk 0:00:26.9]}
24. Qg4 {[%clk 0:00:30.6]} 24... f5 {[%clk 0:00:26.2]} 25. exf5 {[%clk
0:00:26.6]} 25... Nxf5 {[%clk 0:00:21.4]} 26. Bg5 {[%clk 0:00:24.3]} 26... Be7
{[%clk 0:00:13.7]} 27. Nxe7+ {[%clk 0:00:21.7]} 27... Rxe7 {[%clk 0:00:12]} 28.
Qe4 {[%clk 0:00:16.6]} 28... Nd4 {[%clk 0:00:07.1]} 29. Kh1 {[%clk 0:00:11.1]}
29... Qd6 {[%clk 0:00:06.2]} 30. Bg2 {[%clk 0:00:06.2]} 30... Ref7 {[%clk
0:00:05.9]} 31. Qd5 {[%clk 0:00:06.3]} 31... Qxd5 {[%clk 0:00:05]} 32. Bxd5
{[%clk 0:00:07.2]} 32... Kg7 {[%clk 0:00:05.2]} 33. Bxf7 {[%clk 0:00:05.4]}
33... Rxf7 {[%clk 0:00:06.1]} 34. Re1 {[%clk 0:00:05.6]} 34... Nf3 {[%clk
0:00:05.6]} 0-1

[Event "Early-Titled-Tuesday-Blitz-March-05-2024"]
[Site "Chess.com"]
[Date "2024.03.05"]
[Round "10"]
[White "NewYearGirl"]
[Black "CarlosjPineror"]
[Result "1-0"]
[WhiteElo "2432"]
[BlackElo "2723"]
[TimeControl "180+1"]
[EndTime "9:57:45 PST"]
[Termination "NewYearGirl won by resignation"]

1. e4 {[%clk 0:03:00.9]} 1... c5 {[%clk 0:02:55.2]} 2. Nf3 {[%clk 0:03:00.9]}
2... e6 {[%clk 0:02:55.6]} 3. d4 {[%clk 0:03:01.5]} 3... cxd4 {[%clk 0:02:56.5]}
4. Nxd4 {[%clk 0:03:02.4]} 4... a6 {[%clk 0:02:56.6]} 5. c4 {[%clk 0:03:01.4]}
5... Qc7 {[%clk 0:02:57]} 6. Be3 {[%clk 0:02:56.1]} 6... Nf6 {[%clk 0:02:57.5]}
7. Bd3 {[%clk 0:02:55.5]} 7... Be7 {[%clk 0:02:57]} 8. O-O {[%clk 0:02:55.6]}
8... d6 {[%clk 0:02:57.1]} 9. f4 {[%clk 0:02:54.5]} 9... b6 {[%clk 0:02:54.7]}
10. Nc3 {[%clk 0:02:54.1]} 10... Bb7 {[%clk 0:02:55]} 11. Rc1 {[%clk 0:02:52.1]}
11... Nbd7 {[%clk 0:02:55.2]} 12. b4 {[%clk 0:02:51.9]} 12... Rc8 {[%clk
0:02:53.1]} 13. Qf3 {[%clk 0:02:51]} 13... Qb8 {[%clk 0:02:52.2]} 14. Qh3 {[%clk
0:02:46.4]} 14... Qa8 {[%clk 0:02:33.4]} 15. Nxe6 {[%clk 0:02:34.5]} 15... fxe6
{[%clk 0:02:32]} 16. Qxe6 {[%clk 0:02:35.4]} 16... Nf8 {[%clk 0:02:11.3]} 17.
Qh3 {[%clk 0:02:34.8]} 17... Qb8 {[%clk 0:02:10.9]} 18. Bd4 {[%clk 0:02:25.1]}
18... Rd8 {[%clk 0:02:02.5]} 19. e5 {[%clk 0:02:21.4]} 19... dxe5 {[%clk
0:02:02.3]} 20. Bxe5 {[%clk 0:02:22]} 20... Qc8 {[%clk 0:02:00.6]} 21. Bf5
{[%clk 0:02:04.1]} 21... Qc6 {[%clk 0:01:35.2]} 22. Rce1 {[%clk 0:01:43.5]}
22... Kf7 {[%clk 0:01:30.5]} 23. Bxf6 {[%clk 0:01:40.9]} 23... Bxf6 {[%clk
0:01:23.7]} 24. Nd5 {[%clk 0:01:35.8]} 24... Rxd5 {[%clk 0:01:17.4]} 25. cxd5
{[%clk 0:01:30.8]} 25... Qxd5 {[%clk 0:01:17.8]} 26. Kh1 {[%clk 0:01:25.3]}
26... Bc6 {[%clk 0:00:44.3]} 27. Bc2 {[%clk 0:01:21.4]} 27... Bb5 {[%clk
0:00:38.4]} 28. Be4 {[%clk 0:01:10.9]} 28... Qd7 {[%clk 0:00:37.4]} 29. Qb3+
{[%clk 0:01:09.7]} 29... Ne6 {[%clk 0:00:34.5]} 30. Bd5 {[%clk 0:01:06]} 30...
Kf8 {[%clk 0:00:31.6]} 31. Bxe6 {[%clk 0:01:03.2]} 31... Qb7 {[%clk 0:00:22.5]}
32. Bd5 {[%clk 0:01:02.2]} 32... Qd7 {[%clk 0:00:21.4]} 33. Rf3 {[%clk
0:00:59.6]} 33... g6 {[%clk 0:00:20.7]} 34. Rfe3 {[%clk 0:00:57.5]} 34... Kg7
{[%clk 0:00:20]} 35. Be6 {[%clk 0:00:55]} 35... Qd6 {[%clk 0:00:17.7]} 36. Qd5
{[%clk 0:00:54.4]} 36... Rd8 {[%clk 0:00:16.9]} 37. Qxd6 {[%clk 0:00:53.5]}
37... Rxd6 {[%clk 0:00:17.3]} 38. f5 {[%clk 0:00:54]} 38... gxf5 {[%clk
0:00:15.6]} 39. Rg3+ {[%clk 0:00:51.3]} 39... Kh6 {[%clk 0:00:14.7]} 40. Bxf5
{[%clk 0:00:50.5]} 40... Bh4 {[%clk 0:00:15.4]} 41. Rh3 {[%clk 0:00:50.1]} 41...
Kg5 {[%clk 0:00:16]} 42. g3 {[%clk 0:00:45.3]} 42... Bc6+ {[%clk 0:00:14.3]} 43.
Be4 {[%clk 0:00:44.4]} 43... Re6 {[%clk 0:00:11.4]} 44. Rxh4 {[%clk 0:00:43.9]}
44... h5 {[%clk 0:00:10.1]} 45. Rf4 {[%clk 0:00:41.7]} 1-0

[Event "Early-Titled-Tuesday-Blitz-March-05-2024"]
[Site "Chess.com"]
[Date "2024.03.05"]
[Round "10"]
[White "amylazy"]
[Black "bylavochka"]
[Result "1-0"]
[WhiteElo "2434"]
[BlackElo "2346"]
[TimeControl "180+1"]
[EndTime "9:57:46 PST"]
[Termination "amylazy won on time"]

1. d4 {[%clk 0:02:42.4]} 1... Nf6 {[%clk 0:02:59.7]} 2. Nf3 {[%clk 0:02:40.8]}
2... g6 {[%clk 0:02:59.8]} 3. g3 {[%clk 0:02:38.1]} 3... Bg7 {[%clk 0:03:00.4]}
4. Bg2 {[%clk 0:02:39]} 4... O-O {[%clk 0:03:01]} 5. O-O {[%clk 0:02:39.9]} 5...
d5 {[%clk 0:03:01.4]} 6. c4 {[%clk 0:02:39.8]} 6... c6 {[%clk 0:03:00.5]} 7. Qb3
{[%clk 0:02:39]} 7... dxc4 {[%clk 0:02:52.9]} 8. Qxc4 {[%clk 0:02:38.8]} 8...
Nbd7 {[%clk 0:02:53]} 9. Re1 {[%clk 0:02:37.6]} 9... Nb6 {[%clk 0:02:46.5]} 10.
Qc2 {[%clk 0:02:37.3]} 10... Nfd7 {[%clk 0:01:39.8]} 11. Nc3 {[%clk 0:02:34.1]}
11... e5 {[%clk 0:01:38.5]} 12. Bg5 {[%clk 0:02:28.9]} 12... Qc7 {[%clk
0:01:30.2]} 13. Rad1 {[%clk 0:02:27.5]} 13... exd4 {[%clk 0:01:27.1]} 14. Nb5
{[%clk 0:02:20.5]} 14... Qb8 {[%clk 0:01:23.1]} 15. Bf4 {[%clk 0:02:18]} 15...
Ne5 {[%clk 0:01:19.3]} 16. Nbxd4 {[%clk 0:02:16.8]} 16... Bg4 {[%clk 0:01:10.7]}
17. Nxe5 {[%clk 0:02:09.2]} 17... Bxe5 {[%clk 0:01:11.6]} 18. Bh6 {[%clk
0:02:08.7]} 18... Re8 {[%clk 0:01:00.1]} 19. Nf3 {[%clk 0:02:08.1]} 19... Bh8
{[%clk 0:00:50]} 20. Qb3 {[%clk 0:02:02.6]} 20... Be6 {[%clk 0:00:49.3]} 21. Qc2
{[%clk 0:02:00.9]} 21... Bf5 {[%clk 0:00:43.6]} 22. e4 {[%clk 0:01:57.8]} 22...
Bg4 {[%clk 0:00:43.7]} 23. h3 {[%clk 0:01:56.7]} 23... Bxf3 {[%clk 0:00:42.7]}
24. Bxf3 {[%clk 0:01:54.6]} 24... Qe5 {[%clk 0:00:43]} 25. b3 {[%clk 0:01:51.3]}
25... Rad8 {[%clk 0:00:41.1]} 26. Bf4 {[%clk 0:01:49.7]} 26... Qc3 {[%clk
0:00:35.3]} 27. Qe2 {[%clk 0:01:48]} 27... Qb2 {[%clk 0:00:25.6]} 28. Qe3 {[%clk
0:01:41.4]} 28... Bc3 {[%clk 0:00:22.6]} 29. Rxd8 {[%clk 0:01:38.5]} 29... Rxd8
{[%clk 0:00:20.9]} 30. Re2 {[%clk 0:01:38.9]} 30... Qa1+ {[%clk 0:00:15.6]} 31.
Kg2 {[%clk 0:01:39.3]} 31... Bd4 {[%clk 0:00:15.8]} 32. Qd3 {[%clk 0:01:36.9]}
32... Bf6 {[%clk 0:00:15.9]} 33. Qc2 {[%clk 0:01:36.9]} 33... Rd1 {[%clk
0:00:15.5]} 34. Kh2 {[%clk 0:01:27.3]} 34... Bd4 {[%clk 0:00:14.1]} 35. Rd2
{[%clk 0:01:22.1]} 35... Rxd2 {[%clk 0:00:09.5]} 36. Qxd2 {[%clk 0:01:21.1]}
36... Nd7 {[%clk 0:00:09.4]} 37. Bg2 {[%clk 0:01:13.7]} 37... c5 {[%clk
0:00:07.1]} 38. Bh6 {[%clk 0:01:12.4]} 38... Qc3 {[%clk 0:00:06.1]} 39. Qg5
{[%clk 0:01:11.7]} 39... Bf6 {[%clk 0:00:04.8]} 40. Qd5 {[%clk 0:01:11.8]} 40...
Qd4 {[%clk 0:00:02.7]} 41. Qxb7 {[%clk 0:01:10.2]} 41... Bg7 {[%clk 0:00:03.1]}
42. Qc8+ {[%clk 0:01:09.7]} 42... Nf8 {[%clk 0:00:03.4]} 43. Be3 {[%clk
0:01:06.5]} 43... Qb2 {[%clk 0:00:02.2]} 44. Bxc5 {[%clk 0:01:06.6]} 44... Qxa2
{[%clk 0:00:02.6]} 45. b4 {[%clk 0:01:04.9]} 45... Qb3 {[%clk 0:00:02]} 46. Qb8
{[%clk 0:00:59]} 46... a6 {[%clk 0:00:01.6]} 47. Qd6 {[%clk 0:00:57.7]} 47...
Qc4 {[%clk 0:00:01.6]} 48. Qb8 {[%clk 0:00:52.5]} 48... h5 {[%clk 0:00:01.3]}
49. h4 {[%clk 0:00:51.4]} 1-0

[Event "Early-Titled-Tuesday-Blitz-March-05-2024"]
[Site "Chess.com"]
[Date "2024.03.05"]
[Round "10"]
[White "Kapitan_Bayan"]
[Black "Bulatova_Kamaliya"]
[Result "0-1"]
[WhiteElo "2279"]
[BlackElo "2434"]
[TimeControl "180+1"]
[EndTime "9:57:51 PST"]
[Termination "Bulatova_Kamaliya won on time"]

1. e4 {[%clk 0:03:00.9]} 1... e6 {[%clk 0:02:58.9]} 2. d4 {[%clk 0:03:00.9]}
2... d5 {[%clk 0:02:58.9]} 3. Nc3 {[%clk 0:03:01.4]} 3... Nf6 {[%clk 0:02:57.6]}
4. e5 {[%clk 0:03:00.8]} 4... Nfd7 {[%clk 0:02:57.1]} 5. f4 {[%clk 0:02:59.8]}
5... c5 {[%clk 0:02:57.1]} 6. Nf3 {[%clk 0:03:00]} 6... Nc6 {[%clk 0:02:57]} 7.
Be3 {[%clk 0:03:00.2]} 7... a6 {[%clk 0:02:53.2]} 8. Ne2 {[%clk 0:02:52.1]} 8...
b5 {[%clk 0:02:49]} 9. c3 {[%clk 0:02:52]} 9... c4 {[%clk 0:02:44.1]} 10. Ng3
{[%clk 0:02:49.7]} 10... f5 {[%clk 0:02:37.9]} 11. Ng5 {[%clk 0:02:40]} 11...
Nb6 {[%clk 0:02:26.8]} 12. Qh5+ {[%clk 0:02:26.7]} 12... g6 {[%clk 0:02:21.6]}
13. Qh3 {[%clk 0:02:25.9]} 13... Qc7 {[%clk 0:01:58.7]} 14. Nh5 {[%clk
0:02:09.6]} 14... Na4 {[%clk 0:01:24.7]} 15. Nf6+ {[%clk 0:02:06.8]} 15... Kd8
{[%clk 0:01:21.9]} 16. Be2 {[%clk 0:01:50.1]} 16... h6 {[%clk 0:01:10.9]} 17.
O-O {[%clk 0:01:15.3]} 17... Qg7 {[%clk 0:00:57.5]} 18. Nf3 {[%clk 0:01:07.8]}
18... Nxb2 {[%clk 0:00:56.1]} 19. Nh4 {[%clk 0:00:45.2]} 19... g5 {[%clk
0:00:41.5]} 20. Nxf5 {[%clk 0:00:42.2]} 20... exf5 {[%clk 0:00:40.7]} 21. Nxd5
{[%clk 0:00:34.9]} 21... Be6 {[%clk 0:00:27.6]} 22. Nb6 {[%clk 0:00:32.3]} 22...
g4 {[%clk 0:00:22.9]} 23. Qh5 {[%clk 0:00:20.5]} 23... Ra7 {[%clk 0:00:10.9]}
24. d5 {[%clk 0:00:18.7]} 24... Nxe5 {[%clk 0:00:10.1]} 25. fxe5 {[%clk
0:00:15.5]} 25... Qxe5 {[%clk 0:00:10.2]} 26. Bd4 {[%clk 0:00:14.4]} 26... Qxe2
{[%clk 0:00:10.2]} 27. Rae1 {[%clk 0:00:12.5]} 27... Qd2 {[%clk 0:00:08]} 28.
dxe6 {[%clk 0:00:05.3]} 28... Rg8 {[%clk 0:00:05.9]} 29. Nd5 {[%clk 0:00:01.5]}
29... Nd3 {[%clk 0:00:02.3]} 0-1

[Event "Early-Titled-Tuesday-Blitz-March-05-2024"]
[Site "Chess.com"]
[Date "2024.03.05"]
[Round "10"]
[White "only_strong_moves"]
[Black "StrackedAktonamee"]
[Result "0-1"]
[WhiteElo "2563"]
[BlackElo "2502"]
[TimeControl "180+1"]
[EndTime "9:57:52 PST"]
[Termination "StrackedAktonamee won by resignation"]

1. d4 {[%clk 0:03:00.9]} 1... d5 {[%clk 0:02:53.1]} 2. Nc3 {[%clk 0:03:01.8]}
2... e6 {[%clk 0:02:52]} 3. Bf4 {[%clk 0:03:02.1]} 3... Bd6 {[%clk 0:02:52.5]}
4. e3 {[%clk 0:03:01.5]} 4... Nf6 {[%clk 0:02:51.6]} 5. Nf3 {[%clk 0:03:01]}
5... c5 {[%clk 0:02:51.1]} 6. Ne5 {[%clk 0:02:56.3]} 6... O-O {[%clk 0:02:45.7]}
7. Be2 {[%clk 0:02:55.3]} 7... a6 {[%clk 0:02:41.4]} 8. O-O {[%clk 0:02:54.6]}
8... Qc7 {[%clk 0:02:41.7]} 9. Bg3 {[%clk 0:02:52.2]} 9... Nc6 {[%clk
0:02:39.8]} 10. f4 {[%clk 0:02:51.9]} 10... cxd4 {[%clk 0:02:38.1]} 11. exd4
{[%clk 0:02:52.8]} 11... Nxd4 {[%clk 0:02:35.8]} 12. Bd3 {[%clk 0:02:48.2]}
12... Nc6 {[%clk 0:02:22.9]} 13. Qe2 {[%clk 0:02:42.4]} 13... Qb6+ {[%clk
0:02:14]} 14. Kh1 {[%clk 0:02:32.3]} 14... Qxb2 {[%clk 0:02:14.9]} 15. Qd2
{[%clk 0:02:12.2]} 15... Bb4 {[%clk 0:01:53.5]} 16. Rab1 {[%clk 0:01:21.1]}
16... Qxc3 {[%clk 0:01:46.7]} 17. Qe2 {[%clk 0:01:22]} 17... Bd6 {[%clk
0:01:21.9]} 18. Qf3 {[%clk 0:01:15.7]} 18... Kh8 {[%clk 0:01:06.7]} 19. Rfe1
{[%clk 0:01:12.5]} 19... Nd4 {[%clk 0:00:48.4]} 20. Qf2 {[%clk 0:01:11]} 20...
Nf5 {[%clk 0:00:46]} 21. Bh4 {[%clk 0:01:07]} 21... Ne4 {[%clk 0:00:29.2]} 22.
Bxe4 {[%clk 0:00:56.1]} 22... dxe4 {[%clk 0:00:30.1]} 23. Rxe4 {[%clk
0:00:56.6]} 23... b5 {[%clk 0:00:23.3]} 24. Rb3 {[%clk 0:00:38.8]} 24... Qa1+
{[%clk 0:00:17.5]} 25. Re1 {[%clk 0:00:38.1]} 25... Qxa2 {[%clk 0:00:14]} 26.
Rd3 {[%clk 0:00:30.7]} 26... Bxe5 {[%clk 0:00:13.2]} 27. fxe5 {[%clk 0:00:30.3]}
27... Bb7 {[%clk 0:00:12.7]} 28. Kg1 {[%clk 0:00:30.9]} 28... Rac8 {[%clk
0:00:11.8]} 29. Rd2 {[%clk 0:00:29.2]} 29... Nxh4 {[%clk 0:00:11.6]} 30. Qxh4
{[%clk 0:00:29.3]} 30... Qc4 {[%clk 0:00:12.3]} 31. Qf2 {[%clk 0:00:26]} 31...
Bd5 {[%clk 0:00:11.7]} 32. Re3 {[%clk 0:00:22.7]} 32... a5 {[%clk 0:00:11.5]}
33. Rh3 {[%clk 0:00:23]} 33... a4 {[%clk 0:00:10.1]} 34. Qe1 {[%clk 0:00:23.7]}
34... a3 {[%clk 0:00:07.5]} 35. c3 {[%clk 0:00:24.3]} 35... a2 {[%clk
0:00:07.2]} 36. Qa1 {[%clk 0:00:23.7]} 36... Qb3 {[%clk 0:00:07.7]} 37. Rb2
{[%clk 0:00:23.4]} 37... Qc4 {[%clk 0:00:05.2]} 38. Rb4 {[%clk 0:00:22]} 38...
Qe2 {[%clk 0:00:04.5]} 39. Rb2 {[%clk 0:00:22.4]} 39... Qxe5 {[%clk 0:00:03.1]}
40. Rc2 {[%clk 0:00:21.2]} 40... b4 {[%clk 0:00:03.2]} 41. Re3 {[%clk
0:00:16.5]} 41... Qxe3+ {[%clk 0:00:03.1]} 42. Kh1 {[%clk 0:00:17.2]} 42... b3
{[%clk 0:00:03.7]} 0-1